bitfinex/quotes_ETHUSD_20240925
["timestamp","ask_amount","ask_price","bid_price","bid_amount"]
[1727270097174,10.48684625,2620.9,2620.8,0.0062888]
[1727270097763,8.09490617,2620.9,2620.8,0.0062888]
[1727270099972,10.48648235,2620.9,2620.8,0.0062888]
[1727270100279,8.09490617,2620.9,2620.8,0.0062888]
[1727270101848,10.48619122,2620.9,2620.8,0.0062888]
[1727270102037,10.48619122,2620.9,2620.8,1.31699509]
[1727270102038,4.26240617,2620.9,2620.8,1.31699509]
[1727270102244,6.25547681,2620.9,2620.8,1.31699509]
[1727270102443,3.86382667,2620.9,2620.8,0.0062888]
[1727270102662,5.85695012,2620.9,2620.8,0.0062888]
[1727270102838,5.85695012,2620.9,2620.3,1.31070629]
[1727270102839,3.9163563,2620.9,2620.3,1.31070629]
[1727270103037,3.81578,2620.7,2620.3,1.31070629]
[1727270103241,0.0431984,2620.6,2620.3,1.31070629]
[1727270105714,3.8591284,2620.6,2620.3,1.31070629]
[1727270105893,0.0431984,2620.6,2620.0,0.7977]
[1727270106084,3.81613,2620.5,2620.3,0.7977]
[1727270106436,0.04323775,2620.4,2620.3,0.7977]
[1727270106575,3.85944775,2620.4,2620.3,0.7977]
[1727270107489,3.81635,2620.3,2620.1,0.7579]
[1727270107688,3.81671,2620.1,2619.8,0.774]
[1727270107901,3.81647,2620.3,2619.4,0.8123371]
[1727270107902,3.8172,2619.8,2619.4,0.8123371]
[1727270108101,0.04291842,2619.7,2619.4,1.63357081]
[1727270108276,3.86022842,2619.7,2619.4,2.9442771]
[1727270108476,0.04303773,2619.6,2619.4,2.12304339]
[1727270108906,3.81694,2619.9,2619.4,2.12304339]
[1727270109076,3.86002742,2619.8,2619.6,1.31070629]
[1727270110776,0.04293742,2619.8,2619.6,1.31070629]
[1727270111695,6.81679,2620.0,2619.6,1.31070629]
[1727270111884,6.81679,2620.0,2619.8,1.31070629]
[1727270112229,6.81679,2620.0,2619.4,5.22401944]
[1727270112434,6.81679,2620.0,2619.7,1.31070629]
[1727270112737,6.81672,2620.1,2619.7,2.07240629]
[1727270113229,3.0,2619.9,2619.7,2.07240629]
[1727270113406,0.04298948,2620.0,2619.7,2.07240629]
[1727270113608,0.04293307,2619.8,2619.7,2.07240629]
[1727270113805,3.0,2620.1,2619.7,2.66138892]
[1727270114128,6.81652,2620.2,2620.0,1.31070629]
[1727270114331,3.82442963,2620.4,2620.0,1.31070629]
[1727270114532,3.0,2620.2,2620.0,1.31070629]
[1727270117125,0.04126461,2620.1,2620.0,1.31070629]
[1727270117331,0.04126461,2620.1,2620.0,2.08650629]
[1727270117528,4.58811,2620.4,2620.0,2.08650629]
[1727270117836,0.03985891,2620.3,2620.0,2.08650629]
[1727270118493,0.03985891,2620.3,2620.2,1.31070629]
[1727270119523,0.03985891,2620.3,2620.2,6.22118504]
[1727270119731,2.04131828,2621.2,2620.5,0.7598]
[1727270119932,2.04131828,2621.2,2620.7,1.31070629]
[1727270119933,3.81541,2621.0,2620.7,1.31070629]
[1727270120116,3.81541,2621.0,2620.3,2.07050629]
[1727270120117,3.8157,2620.8,2620.3,2.07050629]
[1727270120331,3.8157,2620.8,2620.3,0.7598]
[1727270120705,0.0346722,2620.7,2620.3,0.7598]
[1727270121710,3.8157,2620.8,2620.3,0.7598]
[1727270121912,0.03468383,2620.7,2620.3,0.7598]
[1727270122132,3.8157,2620.8,2620.3,2.62315081]
[1727270122349,0.0346722,2620.7,2620.3,2.62315081]
[1727270122550,0.7875,2620.9,2620.3,5.4640389]
[1727270122710,0.03465387,2620.8,2620.4,3.81617]
[1727270123039,0.03465387,2620.8,2620.5,2.84088809]
[1727270123225,6.81515,2621.2,2620.7,2.84088809]
[1727270123400,3.81547,2621.0,2620.6,0.7887]
[1727270123604,6.04029537,2621.2,2620.4,0.92802089]
[1727270123605,3.8157,2620.8,2620.4,0.7887]
[1727270125806,3.81539,2621.0,2620.4,4.60489]
[1727270125807,7.63083,2621.0,2620.4,4.60489]
[1727270126004,3.81539,2621.0,2620.5,2.84088809]
[1727270126949,7.63085,2621.0,2620.5,2.84088809]
[1727270127146,3.81539,2621.0,2620.6,0.7507]
[1727270127358,0.7847,2621.1,2620.6,0.7507]
[1727270127552,3.81519,2621.1,2620.6,0.7507]
[1727270129250,3.81534,2621.0,2620.5,3.81597]
[1727270129844,4.21405896,2621.1,2620.6,0.7507]
[1727270130225,3.81526,2621.1,2620.6,0.7507]
[1727270130422,3.0,2621.2,2620.6,0.7507]
[1727270130655,3.8152,2621.1,2620.6,0.7507]
[1727270130862,11.58813741,2621.2,2620.6,4.56655]
[1727270131550,3.81521,2621.1,2620.6,4.56655]
[1727270132781,2.76322538,2621.3,2620.9,2.84088809]
[1727270132782,1.98842538,2621.3,2620.9,2.84088809]
[1727270132925,5.80291538,2621.6,2621.1,6.65594809]
[1727270133130,0.7788,2621.7,2621.2,0.7857]
[1727270133131,4.59312,2621.7,2621.2,0.7857]
[1727270133340,4.4779775,2621.6,2621.2,0.7857]
[1727270133621,3.81482,2621.4,2621.2,0.7857]
[1727270133826,0.6634075,2621.6,2621.0,0.7857]
[1727270134027,3.81513,2621.2,2621.0,0.7857]
[1727270134637,3.81513,2621.2,2620.7,0.7857]
[1727270134850,3.81491,2621.3,2620.8,3.81562]
[1727270135237,3.81491,2621.3,2620.9,0.7857]
[1727270135843,4.59348,2621.5,2620.9,3.62658809]
[1727270136058,5.3437787,2621.5,2620.9,7.44202809]
[1727270136254,3.81492,2621.3,2620.9,0.7857]
[1727270138163,3.81476,2621.4,2620.9,0.7857]
[1727270138531,3.81476,2621.4,2620.9,4.60117]
[1727270139275,3.81476,2621.4,2620.9,7.44205809]
[1727270142683,3.81491,2621.3,2620.9,4.60117]
[1727270143337,8.40822,2621.5,2621.0,3.81533]
[1727270143540,4.59351,2621.5,2621.0,3.81533]
[1727270143741,3.81477,2621.4,2621.0,3.8153]
[1727270143943,3.81477,2621.4,2621.0,3.81531]
[1727270145266,0.7788,2621.5,2621.0,3.81531]
[1727270145474,4.59341,2621.5,2621.0,3.81531]
[1727270146369,3.81461,2621.5,2621.0,3.81531]
[1727270147461,3.81461,2621.5,2620.9,4.60117]
[1727270147462,3.81481,2621.4,2620.9,4.60117]
[1727270147659,3.81492,2621.3,2620.9,4.60117]
[1727270147899,3.81492,2621.3,2620.9,0.7857]
[1727270148473,7.62992,2621.3,2620.9,0.7857]
[1727270148669,3.81492,2621.3,2620.9,0.7857]
[1727270148871,3.81505,2621.2,2620.9,0.7857]
[1727270149072,3.81492,2621.3,2620.9,0.7857]
[1727270150698,7.6299,2621.3,2620.9,0.7857]
[1727270150875,3.81492,2621.3,2620.9,4.60116]
[1727270151901,7.62992,2621.3,2620.9,0.7857]
[1727270152260,0.8063,2621.6,2620.9,0.7857]
[1727270152261,4.62081,2621.6,2620.9,0.7857]
[1727270152495,3.81527,2621.1,2620.9,0.7857]
[1727270152768,3.81506,2621.2,2620.9,0.7857]
[1727270153910,0.7748,2621.1,2620.3,0.8129]
[1727270154225,3.81585,2620.7,2620.3,0.8129]
[1727270154593,6.81558,2620.9,2620.5,0.7687]
[1727270154810,4.59007,2621.1,2620.6,3.81591]
[1727270154992,3.81501,2621.3,2620.8,0.7687]
[1727270154993,3.81504,2621.2,2620.8,0.7687]
[1727270155194,3.81504,2621.2,2620.8,4.58432]
[1727270155394,6.81501,2621.3,2620.8,4.58432]
[1727270155706,3.81498,2621.3,2620.8,4.58426]
[1727270156080,3.81504,2621.2,2620.8,4.58426]
[1727270156280,3.81498,2621.3,2620.8,4.58426]
[1727270157124,3.81498,2621.3,2620.8,8.39981]
[1727270157347,3.81498,2621.3,2620.8,4.58425]
[1727270158043,3.8148,2621.4,2621.1,0.8184]
[1727270160049,4.63062,2621.5,2621.1,0.8184]
[1727270160252,3.81491,2621.3,2621.1,0.8184]
[1727270160718,3.81472,2621.5,2621.1,0.8184]
[1727270160923,3.81453,2621.6,2621.1,4.63356]
[1727270161152,6.81462,2621.5,2621.1,4.63356]
[1727270162962,3.0,2621.6,2621.2,3.81502]
[1727270163162,3.0,2621.6,2621.3,0.8183]
[1727270163316,6.81418,2621.8,2621.3,4.63309]
[1727270163520,3.81433,2621.7,2621.3,0.8183]
[1727270163714,0.80342963,2621.7,2621.1,0.7595]
[1727270163975,3.81483,2621.4,2621.1,0.7595]
[1727270164254,2.79290608,2621.7,2620.9,0.7595]
[1727270164459,3.81514,2621.2,2620.9,0.7595]
[1727270165758,3.81512,2621.2,2620.9,0.7595]
[1727270170340,6.55682556,2621.4,2620.9,0.7595]
[1727270170662,3.81491,2621.3,2620.9,0.7595]
[1727270171567,5.80592556,2621.4,2620.9,8.39035]
[1727270171765,3.81484,2621.4,2621.0,3.81531]
[1727270171930,3.81462,2621.5,2621.1,0.8101]
[1727270172549,3.81462,2621.5,2621.1,4.62527]
[1727270174355,8.80704276,2621.6,2621.2,3.81495]
[1727270174727,3.81451,2621.6,2621.2,3.81495]
[1727270174927,1.99253276,2621.7,2621.2,4.76261273]
[1727270175165,3.81432,2621.7,2621.4,0.8186]
[1727270175365,1.99253276,2621.7,2621.4,0.8186]
[1727270175551,8.80676276,2621.8,2621.4,0.8186]
[1727270176468,8.80676276,2621.8,2621.4,4.63334]
[1727270176672,8.80745293,2621.8,2621.4,0.8186]
[1727270177056,1.99322293,2621.8,2621.5,3.81453]
[1727270179181,8.80711293,2622.0,2621.6,0.7723]
[1727270179552,3.81406,2621.9,2621.6,0.7723]
[1727270183255,4.99289327,2622.1,2621.6,1.52257862]
[1727270183453,3.0,2621.9,2621.6,1.52257862]
[1727270183678,3.81391,2622.0,2621.6,5.33694862]
[1727270183882,8.80670327,2622.1,2621.6,1.52257862]
[1727270184037,3.0,2621.9,2621.6,0.7723]
[1727270184678,6.8141,2621.9,2621.6,0.7723]
[1727270185473,3.0,2621.9,2621.6,0.7723]
[1727270186678,3.81399,2622.0,2621.6,4.58674]
[1727270186880,3.81399,2622.0,2621.7,0.458684]
[1727270187076,3.81404,2621.9,2621.6,0.7723]
[1727270187281,3.81419,2621.8,2621.6,0.7723]
[1727270187485,3.8144,2621.7,2621.4,0.8232]
[1727270188275,3.8144,2621.7,2621.4,1.6685]
[1727270188480,4.59621,2621.8,2621.4,1.6685]
[1727270188642,3.81435,2621.7,2621.4,1.6685]
[1727270189959,4.59608,2621.8,2621.4,1.6685]
[1727270190139,3.8141,2621.9,2621.5,0.54833]
[1727270190344,5.80558013,2622.0,2621.5,0.54833]
[1727270190581,3.81403,2621.9,2621.6,0.7685]
[1727270191187,3.81396,2622.0,2621.6,1.56561689]
[1727270191487,3.81396,2622.0,2621.6,5.38005689]
[1727270193187,3.81396,2622.0,2621.6,1.56561689]
[1727270193484,7.62793,2622.0,2621.6,1.56561689]
[1727270193686,3.81396,2622.0,2621.6,5.38004689]
[1727270194252,5.8050512,2622.1,2621.6,5.38004689]
[1727270196091,5.80468899,2622.1,2621.7,1.20342458]
[1727270196292,5.80468899,2622.1,2621.6,5.38004689]
[1727270196787,3.81395,2622.0,2621.6,1.56561689]
[1727270197090,5.80468899,2622.1,2621.6,5.38000689]
[1727270197588,3.81382,2622.1,2621.7,3.8143]
[1727270197947,3.81382,2622.1,2621.8,0.7895]
[1727270198663,7.62765,2622.1,2621.8,0.7895]
[1727270199051,3.81382,2622.1,2621.8,0.7895]
[1727270199255,3.81389,2622.0,2621.8,0.7895]
[1727270201114,3.81375,2622.1,2621.8,0.7895]
[1727270201464,7.62757,2622.1,2621.8,0.7895]
[1727270201791,3.81375,2622.1,2621.8,0.7895]
[1727270202701,3.81388,2622.0,2621.8,0.7895]
[1727270204694,3.81361,2622.2,2621.8,0.7895]
[1727270204695,3.0,2622.1,2621.8,0.7895]
[1727270204910,6.81375,2622.1,2621.8,1.249888]
[1727270205061,3.0,2622.1,2621.8,1.249888]
[1727270205449,6.81374,2622.1,2621.8,1.249888]
[1727270206443,6.81374,2622.1,2621.8,0.7895]
[1727270207835,3.0,2622.1,2621.8,0.7895]
[1727270208531,3.0,2622.1,2621.8,2.09915812]
[1727270209348,6.81379,2622.1,2621.8,2.09915812]
[1727270209638,6.81379,2622.1,2621.8,0.7895]
[1727270211753,3.81395,2622.0,2621.8,0.7895]
[1727270212252,6.81365,2622.2,2621.8,0.7895]
[1727270212458,3.81375,2622.1,2621.8,0.7895]
[1727270214385,7.62757,2622.1,2621.8,0.7895]
[1727270215585,3.81375,2622.1,2621.8,0.7895]
[1727270215744,4.99094603,2622.2,2621.8,0.7895]
[1727270215745,8.80455603,2622.2,2621.8,0.7895]
[1727270216080,3.81374,2622.1,2621.8,0.7895]
[1727270216993,1.99094603,2622.3,2622.0,1.30965812]
[1727270217206,6.81339,2622.4,2622.1,4.63923]
[1727270217207,1.99094603,2622.4,2622.1,4.63923]
[1727270217357,3.81327,2622.5,2622.1,4.63923]
[1727270217547,2.02928313,2622.6,2622.1,0.8255]
[1727270217752,3.81317,2622.5,2622.1,0.8255]
[1727270217986,3.81317,2622.5,2622.1,1.49796892]
[1727270218890,7.62642,2622.5,2622.1,1.49796892]
[1727270219188,3.8513571,2622.6,2622.4,1.30965812]
[1727270219356,3.81315,2622.5,2622.2,2.13515812]
[1727270219555,3.8513571,2622.6,2622.2,2.13515812]
[1727270219556,3.8133,2622.4,2622.2,0.8255]
[1727270219776,3.81317,2622.5,2622.2,0.8255]
[1727270220392,3.81333,2622.4,2622.2,0.8255]
[1727270220603,3.81317,2622.5,2621.8,3.81414]
[1727270220604,3.81359,2622.3,2621.8,3.81414]
[1727270220751,3.81359,2622.3,2621.8,9.131059]
[1727270220951,3.81359,2622.3,2621.9,1.30965812]
[1727270221280,5.80419603,2622.5,2622.0,0.785]
[1727270221615,3.81336,2622.4,2622.0,1.82907171]
[1727270222315,3.81351,2622.3,2622.0,1.82907171]
[1727270223394,3.81366,2622.2,2622.0,1.82907171]
[1727270224929,3.81373,2622.1,2622.0,1.82907171]
[1727270225231,3.81373,2622.1,2621.3,3.81489]
[1727270225232,0.7652,2622.1,2621.3,0.7752]
[1727270225445,2.80921857,2622.1,2621.3,0.7752]
[1727270225601,5.80537894,2622.0,2621.4,0.20848581]
[1727270225801,3.8141,2621.9,2621.4,5.33288393]
[1727270226516,3.8141,2621.9,2621.4,4.02322581]
[1727270226726,3.81419,2621.8,2621.5,0.86132058]
[1727270228949,7.62844,2621.8,2621.5,0.86132058]
[1727270229134,3.81435,2621.7,2621.5,0.86132058]
[1727270229447,3.81419,2621.8,2621.4,0.20848581]
[1727270231555,1.9912489,2622.0,2621.6,2.83829477]
[1727270231851,3.81331,2622.4,2622.0,0.7669]
[1727270232240,2.813186,2622.6,2622.2,3.81358]
[1727270232417,0.0383371,2622.6,2622.2,3.81358]
[1727270232622,0.0383371,2622.6,2622.4,0.7669]
[1727270233127,0.0383371,2622.6,2622.4,4.58017]
[1727270234012,0.0383371,2622.6,2622.5,2.83829477]
[1727270234561,0.0383371,2622.6,2622.5,6.65144477]
[1727270234760,0.0383371,2622.6,2622.5,7.50500261]
[1727270234923,0.0383371,2622.6,2622.5,8.63682487]
[1727270235126,0.0383371,2622.6,2622.5,8.56056703]
[1727270236050,0.0383371,2622.6,2622.5,9.11056703]
[1727270239747,0.0383371,2622.6,2622.5,8.56056703]
[1727270239879,0.0383371,2622.6,2622.5,5.72227226]
[1727270240421,0.0383371,2622.6,2622.5,5.79852227]
[1727270241375,0.0383371,2622.6,2622.5,1.90912226]
[1727270241578,0.0383371,2622.6,2622.5,0.7773]
[1727270241811,0.0383371,2622.6,2622.5,4.66670263]
[1727270242127,0.0383371,2622.6,2622.5,7.5049974]
[1727270250433,0.0383371,2622.6,2622.5,7.42874477]
[1727270250997,0.0383371,2622.6,2622.5,7.50499744]
[1727270251226,0.0383371,2622.6,2622.5,8.63681718]
[1727270251467,0.0383371,2622.6,2622.5,8.56056451]
[1727270252232,0.0383371,2622.6,2622.5,9.11056451]
[1727270253036,0.0383371,2623.4,2623.3,4.63889]
[1727270253236,0.0383371,2623.4,2623.3,7.94107377]
[1727270259068,0.0383371,2623.4,2623.3,7.11417377]
[1727270259563,0.0383371,2623.4,2623.3,7.19039975]
[1727270261387,0.0383371,2623.4,2623.3,3.81199]
[1727270264278,0.0383371,2623.4,2623.2,3.81211]
[1727270264463,0.0383371,2623.4,2623.3,3.81199]
[1727270266651,0.0383371,2623.4,2623.2,3.81206]
[1727270267158,0.0383371,2623.4,2623.2,7.62413]
[1727270267363,0.0383371,2623.4,2623.2,7.62411]
[1727270268079,0.0383371,2623.4,2623.3,3.81199]
[1727270270188,0.0383371,2623.4,2623.1,7.62446]
[1727270270189,0.7855,2623.3,2623.1,7.62446]
[1727270270351,0.7855,2623.3,2622.7,6.65112477]
[1727270270352,0.7855,2623.3,2623.2,3.81213]
[1727270272244,0.7855,2623.3,2623.0,3.81234]
[1727270272444,0.7855,2623.3,2623.1,3.81226]
[1727270276885,0.7855,2623.3,2622.7,2.83829477]
[1727270277101,0.7855,2623.3,2623.0,3.81233]
[1727270277384,0.7855,2623.3,2623.0,3.84033]
[1727270278262,0.7855,2623.3,2623.0,0.028]
[1727270279544,4.59757,2623.3,2623.0,0.028]
[1727270279871,0.7781,2623.1,2623.0,0.028]
[1727270280060,4.64290963,2623.1,2623.0,0.028]
[1727270281148,5.43587996,2623.1,2623.0,0.028]
[1727270281357,10.48053197,2623.1,2623.0,0.028]
[1727270281605,10.42750445,2623.1,2623.0,0.028]
[1727270281946,8.43587996,2623.1,2623.0,0.028]
[1727270282149,10.42757603,2623.1,2623.0,0.028]
[1727270282382,8.43587996,2623.1,2623.0,0.028]
[1727270283382,11.27417473,2623.1,2623.0,0.028]
[1727270283587,14.06192622,2623.1,2623.0,0.028]
[1727270284554,11.67137937,2623.1,2623.0,0.028]
[1727270284755,14.06192622,2623.1,2623.0,0.028]
[1727270284980,11.67137937,2623.1,2623.0,0.028]
[1727270285381,14.05921883,2623.1,2623.0,0.028]
[1727270285586,11.22092406,2623.1,2623.0,0.028]
[1727270286424,8.8330846,2623.1,2623.0,0.028]
[1727270286689,10.82206117,2623.1,2623.0,0.028]
[1727270287600,8.8330846,2623.1,2623.0,0.028]
[1727270288090,13.66009245,2623.1,2623.0,0.028]
[1727270288252,11.67137937,2623.1,2623.0,0.028]
[1727270292600,8.8330846,2623.1,2623.0,0.028]
[1727270293689,10.81922826,2623.1,2623.0,0.028]
[1727270294812,8.8330846,2623.1,2623.0,0.028]
[1727270295507,11.67137937,2623.1,2623.0,0.028]
[1727270295713,13.65724288,2623.1,2623.0,0.028]
[1727270296628,14.20724288,2623.1,2623.0,0.028]
[1727270296788,12.22137937,2623.1,2623.0,0.028]
[1727270298188,14.20651733,2623.1,2623.0,0.028]
[1727270299522,12.22137937,2623.1,2623.0,0.028]
[1727270299724,14.2064037,2623.1,2623.0,0.028]
[1727270300028,12.22137937,2623.1,2623.0,0.028]
[1727270300248,14.20636093,2623.1,2623.0,0.028]
[1727270300606,12.22137937,2623.1,2623.0,0.028]
[1727270301651,14.20631817,2623.1,2623.0,0.028]
[1727270301800,12.22137937,2623.1,2623.0,0.028]
[1727270302542,14.20614207,2623.1,2623.0,0.028]
[1727270303438,12.22137937,2623.1,2623.0,0.028]
[1727270304714,14.20586394,2623.1,2623.0,0.028]
[1727270305218,12.22137937,2623.1,2623.0,0.028]
[1727270309164,13.65678025,2623.1,2623.0,0.028]
[1727270309657,11.67137937,2623.1,2623.0,0.028]
[1727270309855,13.65678025,2623.1,2623.0,0.028]
[1727270310444,6.97298552,2623.1,2623.0,0.028]
[1727270310646,5.04011427,2623.1,2623.0,0.028]
[1727270311241,4.20948464,2623.1,2623.0,0.028]
[1727270311535,4.26201427,2623.1,2623.0,0.028]
[1727270312581,7.26201427,2623.1,2623.0,0.028]
[1727270312886,6.86480963,2623.1,2623.0,0.028]
[1727270314378,6.81228,2623.1,2623.0,0.028]
[1727270314559,7.67270963,2623.1,2623.0,0.028]
[1727270314757,9.60558088,2623.1,2623.0,0.028]
[1727270316189,7.62018,2623.1,2623.0,0.028]
[1727270316495,10.05997282,2623.1,2623.0,0.028]
[1727270316652,10.00744319,2623.1,2623.0,0.028]
[1727270316854,8.01724939,2623.1,2623.0,0.028]
[1727270319306,9.20061345,2623.1,2623.0,0.028]
[1727270319459,7.20934939,2623.1,2623.0,0.028]
[1727270319650,7.26187902,2623.1,2623.0,0.028]
[1727270321067,9.25428076,2623.1,2623.0,0.028]
[1727270321264,8.80468174,2623.1,2623.0,0.028]
[1727270321468,6.81228,2623.1,2623.0,0.028]
[1727270321689,6.86480963,2623.1,2623.0,0.028]
[1727270323293,9.25429635,2623.1,2623.0,0.028]
[1727270323497,9.20176672,2623.1,2623.0,0.028]
[1727270323699,6.81228,2623.1,2623.0,0.028]
[1727270323870,6.86480963,2623.1,2623.0,0.028]
[1727270324065,9.25809097,2623.1,2623.0,0.028]
[1727270324263,9.20556134,2623.1,2623.0,0.028]
[1727270324583,6.81228,2623.1,2623.0,0.028]
[1727270324796,6.86480963,2623.1,2623.0,0.028]
[1727270324964,7.26160969,2623.1,2623.0,0.028]
[1727270325299,8.06920969,2623.1,2623.0,0.028]
[1727270325599,10.80441457,2623.1,2623.0,0.028]
[1727270325958,8.01668006,2623.1,2623.0,0.028]
[1727270326570,8.56668006,2623.1,2623.0,0.028]
[1727270329777,11.86694823,2623.1,2623.0,0.028]
[1727270329994,8.56668006,2623.1,2623.0,0.028]
[1727270330513,11.86694823,2623.1,2623.0,0.028]
[1727270330818,8.56668006,2623.1,2623.0,0.028]
[1727270331009,11.86694823,2623.1,2623.0,0.028]
[1727270332199,11.31694823,2623.1,2623.0,0.028]
[1727270332368,10.00267103,2623.1,2623.0,0.028]
[1727270332575,4.20908006,2623.1,2623.0,0.028]
[1727270332774,3.86480963,2623.1,2623.0,0.8109]
[1727270332974,3.81228,2623.1,2623.0,0.8109]
[1727270333177,3.86480963,2623.1,2623.0,0.8109]
[1727270333913,6.86480963,2623.1,2623.0,0.8109]
[1727270335210,9.25965715,2623.1,2623.0,0.8109]
[1727270335376,6.81228,2623.1,2623.0,0.8109]
[1727270335571,6.86480963,2623.1,2623.0,0.8109]
[1727270337714,6.81228,2623.1,2623.0,0.8109]
[1727270338843,5.80746487,2623.2,2623.0,2.86629477]
[1727270338844,1.99530487,2623.2,2623.0,2.86629477]
[1727270339043,0.0383371,2623.4,2623.2,0.817]
[1727270339208,3.8501771,2623.4,2623.2,0.817]
[1727270342536,3.81199,2623.3,2623.2,0.817]
[1727270342848,3.81199,2623.3,2623.0,0.8312]
[1727270342849,3.81228,2623.1,2623.0,0.8312]
[1727270345036,3.81224,2623.2,2623.0,0.8312]
[1727270345263,3.76224,2623.2,2623.0,0.8312]
[1727270345822,3.86458963,2623.3,2623.0,0.8312]
[1727270346147,7.67669963,2623.3,2623.0,1.57941848]
[1727270346344,3.81214,2623.2,2623.0,1.57941848]
[1727270346965,3.81214,2623.2,2623.0,0.8312]
[1727270347136,3.81228,2623.1,2623.0,0.8312]
[1727270348021,3.81206,2623.3,2623.0,0.8312]
[1727270348218,7.67670963,2623.3,2623.0,0.8312]
[1727270348418,3.81206,2623.3,2623.0,0.8312]
[1727270348680,0.0383371,2623.4,2623.0,0.8312]
[1727270348826,0.0383371,2623.4,2623.2,2.83829477]
[1727270349031,0.0383371,2623.4,2623.3,4.87441948]
[1727270349538,0.0383371,2623.4,2623.3,1.06242948]
[1727270349847,0.0383371,2623.4,2623.3,4.87441948]
[1727270352527,0.0383371,2623.4,2623.3,1.06242948]
[1727270353158,3.8501771,2623.4,2623.3,1.06242948]
[1727270353481,0.0383371,2623.4,2623.3,0.7786]
[1727270355075,0.0383371,2623.4,2623.3,4.59059]
[1727270357580,0.0383371,2623.4,2623.3,4.66682465]
[1727270365120,0.0383371,2624.2,2624.1,7.46702477]
[1727270365413,0.0383371,2624.2,2624.1,7.54323145]
[1727270374495,0.0383371,2624.2,2624.1,7.46702477]
[1727270378415,0.0383371,2624.2,2624.1,7.46702477]
[1727270380650,0.0383371,2624.2,2624.1,3.81083]
[1727270380812,0.0383371,2624.2,2624.1,6.64912477]
[1727270381007,0.0383371,2624.2,2624.1,7.77644125]
[1727270381649,0.0383371,2624.2,2624.1,3.96561125]
[1727270381802,0.0383371,2624.2,2624.0,3.81091]
[1727270382206,0.0383371,2624.2,2623.9,4.62424]
[1727270382442,0.0383371,2624.2,2623.9,3.81104]
[1727270382650,0.0383371,2624.2,2623.9,2.83829477]
[1727270382953,0.0383371,2624.2,2623.8,4.61367]
[1727270383156,0.0383371,2624.2,2624.0,3.81096]
[1727270383325,0.0383371,2624.2,2623.9,0.74519648]
[1727270383530,3.81086,2624.1,2623.6,4.57146]
[1727270383719,3.8490271,2624.2,2623.7,6.64960477]
[1727270384367,0.0383371,2624.2,2623.9,2.83829477]
[1727270387355,3.8490271,2624.2,2623.9,2.83829477]
[1727270388422,3.8490271,2624.2,2623.9,1.30743709]
[1727270388651,0.0383371,2624.2,2624.1,1.30743709]
[1727270388831,0.0383371,2624.2,2624.1,1.8992648]
[1727270396465,0.0383371,2624.2,2624.0,0.028]
[1727270398983,3.8490871,2624.2,2624.0,0.028]
[1727270399541,3.81083,2624.1,2624.0,0.028]
[1727270403348,4.63493,2624.1,2624.0,0.028]
[1727270404347,0.8241,2624.1,2624.0,0.028]
[1727270406949,0.0383371,2624.2,2624.0,0.028]
[1727270418407,0.0383371,2624.2,2624.0,3.83896]
[1727270418987,0.0383371,2624.2,2624.0,0.028]
[1727270420607,0.0383371,2624.2,2624.1,3.81083]
[1727270420814,0.0383371,2624.2,2624.0,8.414954]
[1727270420974,0.0383371,2624.2,2624.1,3.81083]
[1727270422179,0.0383371,2624.2,2624.1,5.11826709]
[1727270422915,0.0383371,2624.2,2624.1,5.51733809]
[1727270423212,0.0383371,2624.2,2624.1,6.2057193]
[1727270423921,0.0383371,2624.2,2624.1,6.60481449]
[1727270425749,0.0383371,2624.2,2624.1,6.2057193]
[1727270426102,0.0383371,2624.2,2624.1,6.60495965]
[1727270427631,0.0383371,2624.2,2624.1,6.2057193]
[1727270427950,0.0383371,2624.2,2624.1,6.6049667]
[1727270428165,0.0383371,2624.2,2624.1,6.60499951]
[1727270429447,0.0383371,2624.2,2624.1,6.2057193]
[1727270429819,0.0383371,2624.2,2624.1,6.60497026]
[1727270430219,0.0383371,2624.2,2624.1,6.2057193]
[1727270430520,3.81083,2624.1,2624.0,0.028]
[1727270430839,6.64342383,2624.1,2624.0,0.028]
[1727270431046,4.64615963,2624.1,2624.0,0.028]
[1727270432015,4.72748992,2624.1,2624.0,0.028]
[1727270433520,6.03492701,2624.1,2624.0,0.028]
[1727270433721,11.43045397,2624.1,2624.0,0.028]
[1727270433921,11.01974174,2624.1,2624.0,0.028]
[1727270434122,9.53239738,2624.1,2624.0,0.028]
[1727270434327,10.46762023,2624.1,2624.0,0.028]
[1727270434556,7.67496029,2624.1,2624.0,0.028]
[1727270435172,10.0686381,2624.1,2624.0,0.028]
[1727270435458,7.67496029,2624.1,2624.0,0.028]
[1727270439024,8.07195719,2624.1,2624.0,0.028]
[1727270440019,8.62195719,2624.1,2624.0,0.028]
[1727270440765,11.41230579,2624.1,2624.0,0.028]
[1727270440982,8.62195719,2624.1,2624.0,0.028]
[1727270444170,11.40749681,2624.1,2624.0,0.028]
[1727270445974,11.40579209,2624.1,2624.0,0.028]
[1727270446635,3.81325,2622.5,2621.8,3.81406]
[1727270446884,3.81325,2622.5,2621.0,0.0383371]
[1727270446885,0.7536,2621.5,2621.0,0.0383371]
[1727270447065,3.81519,2621.1,2621.0,0.0383371]
[1727270447263,5.12262709,2621.1,2621.0,0.0383371]
[1727270447464,5.25170369,2621.1,2621.0,0.0383371]
[1727270448107,9.15838606,2621.1,2621.0,0.0383371]
[1727270448319,9.10585643,2621.1,2621.0,0.0383371]
[1727270449794,9.50270591,2621.1,2621.0,0.0383371]
[1727270449958,10.32450591,2621.1,2621.0,0.0383371]
[1727270450363,11.85903912,2621.1,2621.0,0.0383371]
[1727270456227,11.46218964,2621.1,2621.0,0.0383371]
[1727270456543,11.85913263,2621.1,2621.0,0.0383371]
[1727270461919,13.89597491,2621.1,2621.0,0.0383371]
[1727270462144,6.81635,2620.3,2620.2,0.0383371]
[1727270462476,7.64877963,2620.3,2620.2,0.0383371]
[1727270462621,7.72060451,2620.3,2620.2,0.0383371]
[1727270462826,7.66807488,2620.3,2620.2,0.0383371]
[1727270465467,10.51004518,2620.3,2620.2,0.0383371]